[Event "Titled Tuesday Blitz May 16 Early 2023"]
[White "Tarasova, Viktoriya"]
[Black "Kuchava, Ana"]
[WhiteFideId "4175840"]
[BlackFideId "13605348"]
[WhiteElo "2182"]
[BlackElo "2001"]
[Result "1/2-1/2"]
[Round "09"]
[TimeControl "180+2"]
[Date "2023.05.16"]
[WhiteClock "0:00:08"]
[BlackClock "0:00:11"]

1. d4 {[%clk 0:03:00]}  d5 {[%clk 0:02:58]} 2. c4 {[%clk 0:03:00]}  e6 {[%clk 0:02:57]} 3. Nc3 {[%clk 0:03:00]}  Be7 {[%clk 0:02:58]} 4. cxd5 {[%clk 0:03:00]}  exd5 {[%clk 0:02:57]} 5. Bf4 {[%clk 0:03:00]}  c6 {[%clk 0:02:55]} 6. e3 {[%clk 0:03:00]}  Bf5 {[%clk 0:02:54]} 7. h3 {[%clk 0:03:00]}  Nf6 {[%clk 0:02:48]} 8. g4 {[%clk 0:02:59]}  Bg6 {[%clk 0:02:28]} 9. Nge2 {[%clk 0:02:52]}  Ne4 {[%clk 0:02:17]} 10. Bg2 {[%clk 0:02:45]}  Nd7 {[%clk 0:02:04]} 11. Nxe4 {[%clk 0:02:38]}  Bxe4 {[%clk 0:01:57]} 12. f3 {[%clk 0:02:37]}  Bh4+ {[%clk 0:01:53]} 13. Kf1 {[%clk 0:02:30]}  Bg6 {[%clk 0:01:52]} 14. e4 {[%clk 0:02:17]}  dxe4 {[%clk 0:01:48]} 15. fxe4 {[%clk 0:02:18]}  O-O {[%clk 0:01:48]} 16. Bf3 {[%clk 0:02:07]}  Re8 {[%clk 0:01:47]} 17. e5 {[%clk 0:02:05]}  Nb6 {[%clk 0:01:43]} 18. Nc3 {[%clk 0:01:57]}  Bg5 {[%clk 0:01:36]} 19. Qc1 {[%clk 0:01:44]}  Bxf4 {[%clk 0:01:06]} 20. Qxf4 {[%clk 0:01:44]}  Nc4 {[%clk 0:01:06]} 21. b3 {[%clk 0:01:29]}  Na3 {[%clk 0:00:57]} 22. Kg2 {[%clk 0:01:21]}  Qa5 {[%clk 0:00:50]} 23. Ne2 {[%clk 0:01:09]}  Rad8 {[%clk 0:00:43]} 24. h4 {[%clk 0:01:00]}  h6 {[%clk 0:00:39]} 25. g5 {[%clk 0:00:48]}  h5 {[%clk 0:00:39]} 26. Rad1 {[%clk 0:00:33]}  Nc2 {[%clk 0:00:38]} 27. a4 {[%clk 0:00:29]}  Qb4 {[%clk 0:00:37]} 28. Be4 {[%clk 0:00:12]}  Bxe4+ {[%clk 0:00:31]} 29. Qxe4 {[%clk 0:00:12]}  Qxb3 {[%clk 0:00:32]} 30. Rb1 {[%clk 0:00:12]}  Qxa4 {[%clk 0:00:25]} 31. Rxb7 {[%clk 0:00:11]}  Nxd4 {[%clk 0:00:21]} 32. Rf1 {[%clk 0:00:07]}  Qa2 {[%clk 0:00:18]} 33. Rfxf7 {[%clk 0:00:06]}  Qxe2+ {[%clk 0:00:10]} 34. Qxe2 {[%clk 0:00:06]}  Nxe2 {[%clk 0:00:11]} 35. Rxg7+ {[%clk 0:00:06]}  Kh8 {[%clk 0:00:10]} 36. Rh7+ {[%clk 0:00:07]}  Kg8 {[%clk 0:00:11]} 37. Rhg7+ {[%clk 0:00:07]}  Kh8 {[%clk 0:00:11]} 38. Rh7+ {[%clk 0:00:07]}  Kg8 {[%clk 0:00:11]} 39. Rhg7+ {[%clk 0:00:08]} 1/2-1/2


[Site "https://www.chess.com"]

[Event "Titled Tuesday Blitz May 16 Early 2023"]
[White "Kiseljova, Marya"]
[Black "Mohammed, Zozek Salah Mohammed"]
[WhiteFideId "4155009"]
[BlackFideId "4803361"]
[WhiteElo "1831"]
[BlackElo "2211"]
[Result "0-1"]
[Round "09"]
[TimeControl "180+2"]
[Date "2023.05.16"]
[WhiteClock "0:00:00"]
[BlackClock "0:01:05"]

1. d4 {[%clk 0:02:55]}  d5 {[%clk 0:02:58]} 2. c4 {[%clk 0:02:55]}  c6 {[%clk 0:02:58]} 3. Nf3 {[%clk 0:02:54]}  Nf6 {[%clk 0:02:59]} 4. g3 {[%clk 0:02:55]}  e6 {[%clk 0:02:58]} 5. Bg2 {[%clk 0:02:54]}  dxc4 {[%clk 0:02:59]} 6. O-O {[%clk 0:02:54]}  b5 {[%clk 0:02:58]} 7. a4 {[%clk 0:02:54]}  Bb7 {[%clk 0:02:58]} 8. b3 {[%clk 0:02:53]}  cxb3 {[%clk 0:02:57]} 9. Qxb3 {[%clk 0:02:50]}  a6 {[%clk 0:02:57]} 10. Bb2 {[%clk 0:02:31]}  Nbd7 {[%clk 0:02:54]} 11. Rc1 {[%clk 0:02:23]}  Qb6 {[%clk 0:02:51]} 12. Nbd2 {[%clk 0:01:58]}  c5 {[%clk 0:02:47]} 13. axb5 {[%clk 0:01:50]}  axb5 {[%clk 0:02:45]} 14. Rxa8+ {[%clk 0:01:47]}  Bxa8 {[%clk 0:02:43]} 15. dxc5 {[%clk 0:01:47]}  Bxc5 {[%clk 0:02:44]} 16. e3 {[%clk 0:01:40]}  O-O {[%clk 0:02:43]} 17. Bf1 {[%clk 0:01:26]}  b4 {[%clk 0:02:37]} 18. Nc4 {[%clk 0:01:23]}  Qb7 {[%clk 0:02:30]} 19. Bg2 {[%clk 0:01:17]}  Be7 {[%clk 0:02:26]} 20. Bd4 {[%clk 0:01:03]}  Qb5 {[%clk 0:02:17]} 21. Na3 {[%clk 0:00:54]}  Qe2 {[%clk 0:02:11]} 22. Re1 {[%clk 0:00:44]}  Qa6 {[%clk 0:02:02]} 23. Nc2 {[%clk 0:00:44]}  Bd5 {[%clk 0:02:01]} 24. Qb2 {[%clk 0:00:42]}  b3 {[%clk 0:01:59]} 25. Ra1 {[%clk 0:00:42]}  Qe2 {[%clk 0:01:54]} 26. Nce1 {[%clk 0:00:29]}  Qb5 {[%clk 0:01:45]} 27. Nd2 {[%clk 0:00:25]}  Rb8 {[%clk 0:01:31]} 28. Ra7 {[%clk 0:00:22]}  Qe2 {[%clk 0:01:27]} 29. Nef3 {[%clk 0:00:12]}  Bc5 {[%clk 0:01:25]} 30. Bxf6 {[%clk 0:00:08]}  Nxf6 {[%clk 0:01:23]} 31. Rc7 {[%clk 0:00:07]}  Bd6 {[%clk 0:01:09]} 32. Rc1 {[%clk 0:00:06]}  Ra8 {[%clk 0:01:09]} 33. Nc4 {[%clk 0:00:00]}  Bxc4 {[%clk 0:01:05]} 0-1


[Site "https://www.chess.com"]

[Event "Titled Tuesday Blitz May 16 Early 2023"]
[White "Li, Hui"]
[Black "Brown, Raehanna"]
[WhiteFideId "15400310"]
[BlackFideId "7402740"]
[WhiteElo "1966"]
[BlackElo "1655"]
[Result "1-0"]
[Round "09"]
[TimeControl "180+2"]
[Date "2023.05.16"]
[WhiteClock "0:01:02"]
[BlackClock "0:00:00"]

1. e4 {[%clk 0:02:56]}  c5 {[%clk 0:02:59]} 2. Nf3 {[%clk 0:02:55]}  Nc6 {[%clk 0:02:59]} 3. d4 {[%clk 0:02:55]}  cxd4 {[%clk 0:03:00]} 4. Nxd4 {[%clk 0:02:56]}  Nf6 {[%clk 0:03:00]} 5. Nc3 {[%clk 0:02:55]}  g6 {[%clk 0:03:00]} 6. Nxc6 {[%clk 0:02:55]}  bxc6 {[%clk 0:03:01]} 7. e5 {[%clk 0:02:54]}  Nh5 {[%clk 0:03:01]} 8. Bc4 {[%clk 0:02:44]}  Ng7 {[%clk 0:03:01]} 9. O-O {[%clk 0:02:43]}  Ne6 {[%clk 0:03:01]} 10. Re1 {[%clk 0:02:41]}  Bg7 {[%clk 0:03:01]} 11. Bxe6 {[%clk 0:02:25]}  dxe6 {[%clk 0:02:28]} 12. Qxd8+ {[%clk 0:02:24]}  Kxd8 {[%clk 0:02:29]} 13. Bg5 {[%clk 0:02:24]}  Re8 {[%clk 0:02:25]} 14. Rad1+ {[%clk 0:02:20]}  Kc7 {[%clk 0:02:25]} 15. Bf4 {[%clk 0:02:15]}  Ba6 {[%clk 0:02:21]} 16. Ne4 {[%clk 0:02:13]}  Rad8 {[%clk 0:02:16]} 17. Nf6 {[%clk 0:01:53]}  exf6 {[%clk 0:00:43]} 18. exf6+ {[%clk 0:01:53]}  e5 {[%clk 0:00:44]} 19. Rxd8 {[%clk 0:01:52]}  Kxd8 {[%clk 0:00:16]} 20. fxg7 {[%clk 0:01:46]}  f6 {[%clk 0:00:12]} 21. Be3 {[%clk 0:01:46]}  Rg8 {[%clk 0:00:09]} 22. Bxa7 {[%clk 0:01:38]}  Rxg7 {[%clk 0:00:09]} 23. Bc5 {[%clk 0:01:37]}  Rd7 {[%clk 0:00:08]} 24. Be3 {[%clk 0:01:35]}  Bc4 {[%clk 0:00:08]} 25. b3 {[%clk 0:01:35]}  Be6 {[%clk 0:00:08]} 26. f3 {[%clk 0:01:30]}  Kc7 {[%clk 0:00:08]} 27. Kf2 {[%clk 0:01:30]}  Rd8 {[%clk 0:00:08]} 28. a4 {[%clk 0:01:29]}  Rd5 {[%clk 0:00:05]} 29. Ke2 {[%clk 0:01:25]}  c5 {[%clk 0:00:05]} 30. Rd1 {[%clk 0:01:24]}  Rxd1 {[%clk 0:00:04]} 31. Kxd1 {[%clk 0:01:25]}  c4 {[%clk 0:00:05]} 32. b4 {[%clk 0:01:21]}  Bd7 {[%clk 0:00:03]} 33. a5 {[%clk 0:01:20]}  Bb5 {[%clk 0:00:04]} 34. c3 {[%clk 0:01:10]}  Kd6 {[%clk 0:00:04]} 35. Ke2 {[%clk 0:01:08]}  Kd5 {[%clk 0:00:02]} 36. Bb6 {[%clk 0:01:05]}  f5 {[%clk 0:00:02]} 37. Ke3 {[%clk 0:01:03]}  g5 {[%clk 0:00:00]} 38. Bd8 {[%clk 0:01:02]} 1-0


[Site "https://www.chess.com"]

[Event "Titled Tuesday Blitz May 16 Early 2023"]
[White "Grossboss19"]
[Black "dDobravcan"]
[WhiteElo "2422"]
[BlackElo "2149"]
[Result "1-0"]
[Round "09"]
[TimeControl "180+2"]
[Date "2023.05.16"]
[WhiteClock "0:00:17"]
[BlackClock "0:00:00"]

1. e4 {[%clk 0:02:52]}  d6 {[%clk 0:02:59]} 2. d4 {[%clk 0:02:50]}  Nf6 {[%clk 0:03:00]} 3. Nd2 {[%clk 0:02:49]}  e5 {[%clk 0:02:57]} 4. c3 {[%clk 0:02:48]}  c6 {[%clk 0:02:55]} 5. Ngf3 {[%clk 0:02:48]}  Qc7 {[%clk 0:02:49]} 6. Bd3 {[%clk 0:02:47]}  Be7 {[%clk 0:02:48]} 7. h3 {[%clk 0:02:42]}  O-O {[%clk 0:02:47]} 8. O-O {[%clk 0:02:39]}  Re8 {[%clk 0:02:48]} 9. Re1 {[%clk 0:02:29]}  Bf8 {[%clk 0:02:42]} 10. Qc2 {[%clk 0:02:28]}  Nbd7 {[%clk 0:02:36]} 11. a4 {[%clk 0:02:25]}  b6 {[%clk 0:02:32]} 12. Nc4 {[%clk 0:02:22]}  Bb7 {[%clk 0:02:02]} 13. Bg5 {[%clk 0:02:20]}  Rad8 {[%clk 0:01:41]} 14. Rad1 {[%clk 0:02:17]}  h6 {[%clk 0:01:40]} 15. Bh4 {[%clk 0:02:11]}  Rc8 {[%clk 0:01:24]} 16. Bg3 {[%clk 0:02:09]}  Nh5 {[%clk 0:01:22]} 17. Bh2 {[%clk 0:02:07]}  a6 {[%clk 0:01:17]} 18. b4 {[%clk 0:02:03]}  b5 {[%clk 0:01:15]} 19. Na5 {[%clk 0:02:00]}  Ba8 {[%clk 0:01:15]} 20. Bf1 {[%clk 0:01:49]}  Ndf6 {[%clk 0:01:06]} 21. dxe5 {[%clk 0:01:40]}  dxe5 {[%clk 0:01:05]} 22. Nb3 {[%clk 0:01:21]}  Nf4 {[%clk 0:00:56]} 23. g3 {[%clk 0:01:18]}  Ne6 {[%clk 0:00:49]} 24. g4 {[%clk 0:01:15]}  Nf4 {[%clk 0:00:40]} 25. Nc1 {[%clk 0:01:13]}  c5 {[%clk 0:00:32]} 26. axb5 {[%clk 0:01:11]}  cxb4 {[%clk 0:00:32]} 27. bxa6 {[%clk 0:01:08]}  bxc3 {[%clk 0:00:31]} 28. Nh4 {[%clk 0:00:51]}  g6 {[%clk 0:00:24]} 29. Re3 {[%clk 0:00:40]}  Rcd8 {[%clk 0:00:20]} 30. Rxd8 {[%clk 0:00:39]}  Rxd8 {[%clk 0:00:19]} 31. Rxc3 {[%clk 0:00:38]}  Qa5 {[%clk 0:00:14]} 32. Bxf4 {[%clk 0:00:34]}  exf4 {[%clk 0:00:13]} 33. f3 {[%clk 0:00:35]}  Bb4 {[%clk 0:00:07]} 34. Rd3 {[%clk 0:00:32]}  Rb8 {[%clk 0:00:04]} 35. Ng2 {[%clk 0:00:28]}  h5 {[%clk 0:00:04]} 36. Nxf4 {[%clk 0:00:24]}  Qg5 {[%clk 0:00:04]} 37. Ng2 {[%clk 0:00:23]}  hxg4 {[%clk 0:00:03]} 38. hxg4 {[%clk 0:00:22]}  Nxg4 {[%clk 0:00:01]} 39. fxg4 {[%clk 0:00:19]}  Bxe4 {[%clk 0:00:00]} 40. Rd8+ {[%clk 0:00:17]} 1-0


[Site "https://www.chess.com"]

[Event "Titled Tuesday Blitz May 16 Early 2023"]
[White "Marcziter, Dmitrii"]
[Black "Mazurkiewicz, Michal"]
[WhiteFideId "13900765"]
[BlackFideId "1124943"]
[WhiteElo "2162"]
[BlackElo "2054"]
[Result "1-0"]
[Round "09"]
[TimeControl "180+2"]
[Date "2023.05.16"]
[WhiteClock "0:01:14"]
[BlackClock "0:00:50"]

1. d4 {[%clk 0:03:00]}  Nf6 {[%clk 0:02:59]} 2. c4 {[%clk 0:03:00]}  e5 {[%clk 0:02:59]} 3. dxe5 {[%clk 0:02:58]}  Ng4 {[%clk 0:03:00]} 4. Nf3 {[%clk 0:02:58]}  Bc5 {[%clk 0:03:00]} 5. e3 {[%clk 0:02:58]}  Nc6 {[%clk 0:03:00]} 6. Nc3 {[%clk 0:02:57]}  O-O {[%clk 0:03:00]} 7. Be2 {[%clk 0:02:56]}  Re8 {[%clk 0:03:00]} 8. b3 {[%clk 0:02:52]}  a5 {[%clk 0:03:00]} 9. Bb2 {[%clk 0:02:52]}  Ncxe5 {[%clk 0:03:00]} 10. Nxe5 {[%clk 0:02:50]}  Nxe5 {[%clk 0:03:01]} 11. O-O {[%clk 0:02:48]}  Ra6 {[%clk 0:03:02]} 12. Ne4 {[%clk 0:02:47]}  Bf8 {[%clk 0:02:56]} 13. Qd5 {[%clk 0:02:36]}  Rh6 {[%clk 0:02:26]} 14. g3 {[%clk 0:02:22]}  d6 {[%clk 0:02:24]} 15. Rfe1 {[%clk 0:02:14]}  Bg4 {[%clk 0:02:21]} 16. Bxe5 {[%clk 0:02:01]}  Rxe5 {[%clk 0:02:12]} 17. Qd4 {[%clk 0:02:00]}  c5 {[%clk 0:01:54]} 18. Qd3 {[%clk 0:01:42]}  Bf5 {[%clk 0:01:54]} 19. f3 {[%clk 0:01:37]}  Qe7 {[%clk 0:01:49]} 20. Rad1 {[%clk 0:01:23]}  Qe6 {[%clk 0:01:38]} 21. Qd2 {[%clk 0:01:19]}  Bxe4 {[%clk 0:01:32]} 22. fxe4 {[%clk 0:01:18]}  Rxe4 {[%clk 0:01:26]} 23. Bf3 {[%clk 0:01:18]}  Re5 {[%clk 0:01:23]} 24. Bd5 {[%clk 0:01:17]}  Qe7 {[%clk 0:01:22]} 25. Rf1 {[%clk 0:01:16]}  Rf6 {[%clk 0:01:05]} 26. Rxf6 {[%clk 0:01:16]}  Qxf6 {[%clk 0:01:06]} 27. Rf1 {[%clk 0:01:15]}  Qf5 {[%clk 0:00:50]} 28. Rxf5 {[%clk 0:01:14]} 1-0


[Site "https://www.chess.com"]

[Event "Titled Tuesday Blitz May 16 Early 2023"]
[White "Chakravarthi Reddy, M"]
[Black "Hinds, Nathan"]
[WhiteFideId "25009532"]
[BlackFideId "7400730"]
[WhiteElo "2201"]
[BlackElo "2001"]
[Result "1/2-1/2"]
[Round "09"]
[TimeControl "180+2"]
[Date "2023.05.16"]
[WhiteClock "0:00:05"]
[BlackClock "0:00:16"]

1. e4 {[%clk 0:03:00]}  c6 {[%clk 0:02:56]} 2. d4 {[%clk 0:02:59]}  d5 {[%clk 0:02:56]} 3. e5 {[%clk 0:03:00]}  c5 {[%clk 0:02:56]} 4. Nf3 {[%clk 0:02:59]}  Nc6 {[%clk 0:02:56]} 5. dxc5 {[%clk 0:02:53]}  Bg4 {[%clk 0:02:56]} 6. Bb5 {[%clk 0:02:43]}  e6 {[%clk 0:02:50]} 7. b4 {[%clk 0:02:35]}  Ne7 {[%clk 0:02:48]} 8. O-O {[%clk 0:02:29]}  Ng6 {[%clk 0:02:41]} 9. Re1 {[%clk 0:02:28]}  Qc7 {[%clk 0:02:38]} 10. Bb2 {[%clk 0:02:22]}  Be7 {[%clk 0:02:36]} 11. Nbd2 {[%clk 0:02:12]}  O-O {[%clk 0:02:30]} 12. Bxc6 {[%clk 0:02:12]}  Qxc6 {[%clk 0:02:21]} 13. h3 {[%clk 0:02:12]}  Bxf3 {[%clk 0:02:19]} 14. Nxf3 {[%clk 0:02:13]}  Qc7 {[%clk 0:02:10]} 15. Qd2 {[%clk 0:01:53]}  Rfd8 {[%clk 0:02:06]} 16. Nd4 {[%clk 0:01:50]}  Rac8 {[%clk 0:01:59]} 17. Nb5 {[%clk 0:01:49]}  Qb8 {[%clk 0:01:55]} 18. Nd6 {[%clk 0:01:49]}  Rc6 {[%clk 0:01:41]} 19. Bd4 {[%clk 0:01:45]}  Bxd6 {[%clk 0:01:28]} 20. exd6 {[%clk 0:01:42]}  b6 {[%clk 0:01:27]} 21. a4 {[%clk 0:01:05]}  bxc5 {[%clk 0:01:15]} 22. Bxc5 {[%clk 0:01:01]}  Nf8 {[%clk 0:00:58]} 23. Qd4 {[%clk 0:00:58]}  Qc8 {[%clk 0:00:49]} 24. Bxa7 {[%clk 0:00:56]}  Rxc2 {[%clk 0:00:48]} 25. b5 {[%clk 0:00:57]}  Nd7 {[%clk 0:00:46]} 26. b6 {[%clk 0:00:56]}  Rc4 {[%clk 0:00:39]} 27. Qd2 {[%clk 0:00:51]}  Nc5 {[%clk 0:00:35]} 28. a5 {[%clk 0:00:45]}  Rxd6 {[%clk 0:00:34]} 29. Rec1 {[%clk 0:00:39]}  Rxc1+ {[%clk 0:00:31]} 30. Rxc1 {[%clk 0:00:38]}  Rc6 {[%clk 0:00:32]} 31. Qc2 {[%clk 0:00:32]}  Qb7 {[%clk 0:00:30]} 32. a6 {[%clk 0:00:22]}  Qxa6 {[%clk 0:00:28]} 33. b7 {[%clk 0:00:23]}  Qxb7 {[%clk 0:00:26]} 34. Bxc5 {[%clk 0:00:22]}  h6 {[%clk 0:00:25]} 35. Qa4 {[%clk 0:00:18]}  Qc7 {[%clk 0:00:24]} 36. Qa3 {[%clk 0:00:18]}  Kh7 {[%clk 0:00:23]} 37. Qd3+ {[%clk 0:00:17]}  g6 {[%clk 0:00:23]} 38. Qa3 {[%clk 0:00:15]}  h5 {[%clk 0:00:22]} 39. Be3 {[%clk 0:00:15]}  Rxc1+ {[%clk 0:00:21]} 40. Bxc1 {[%clk 0:00:15]}  Qd7 {[%clk 0:00:22]} 41. Qe3 {[%clk 0:00:14]}  Qd6 {[%clk 0:00:20]} 42. Qh6+ {[%clk 0:00:14]}  Kg8 {[%clk 0:00:20]} 43. Bb2 {[%clk 0:00:15]}  e5 {[%clk 0:00:21]} 44. Qg5 {[%clk 0:00:14]}  d4 {[%clk 0:00:19]} 45. Bc1 {[%clk 0:00:12]}  Qe6 {[%clk 0:00:18]} 46. Qd8+ {[%clk 0:00:12]}  Kg7 {[%clk 0:00:19]} 47. Ba3 {[%clk 0:00:11]}  d3 {[%clk 0:00:16]} 48. Qf8+ {[%clk 0:00:10]}  Kh7 {[%clk 0:00:17]} 49. Bc1 {[%clk 0:00:09]}  Qf6 {[%clk 0:00:11]} 50. Qh6+ {[%clk 0:00:09]}  Kg8 {[%clk 0:00:12]} 51. Qe3 {[%clk 0:00:08]}  Qf5 {[%clk 0:00:11]} 52. Bb2 {[%clk 0:00:07]}  f6 {[%clk 0:00:11]} 53. Qd2 {[%clk 0:00:06]}  e4 {[%clk 0:00:11]} 54. Qe3 {[%clk 0:00:06]}  Qd5 {[%clk 0:00:11]} 55. Bc3 {[%clk 0:00:06]}  f5 {[%clk 0:00:11]} 56. h4 {[%clk 0:00:06]}  Kf7 {[%clk 0:00:11]} 57. g3 {[%clk 0:00:06]}  Ke6 {[%clk 0:00:11]} 58. Qb6+ {[%clk 0:00:05]}  Qd6 {[%clk 0:00:11]} 59. Qxd6+ {[%clk 0:00:05]}  Kxd6 {[%clk 0:00:12]} 60. Kf1 {[%clk 0:00:05]}  Kd5 {[%clk 0:00:13]} 61. Ke1 {[%clk 0:00:06]}  Kc4 {[%clk 0:00:14]} 62. Kd2 {[%clk 0:00:07]}  Kd5 {[%clk 0:00:14]} 63. Ke3 {[%clk 0:00:06]}  Kc4 {[%clk 0:00:14]} 64. Bd2 {[%clk 0:00:07]}  Kb3 {[%clk 0:00:14]} 65. Ba5 {[%clk 0:00:04]}  Kc2 {[%clk 0:00:14]} 66. Bd2 {[%clk 0:00:05]}  Kd1 {[%clk 0:00:15]} 67. Ba5 {[%clk 0:00:05]}  Kc2 {[%clk 0:00:15]} 68. Bd2 {[%clk 0:00:04]}  Kd1 {[%clk 0:00:15]} 69. Bb4 {[%clk 0:00:04]}  Kc2 {[%clk 0:00:16]} 70. Bd2 {[%clk 0:00:05]} 1/2-1/2


[Site "https://www.chess.com"]

[Event "Titled Tuesday Blitz May 16 Early 2023"]
[White "Skaric, Djuro"]
[Black "Jaivardhan Raj"]
[WhiteFideId "934569"]
[BlackFideId "25744437"]
[WhiteElo "2282"]
[BlackElo "1772"]
[Result "1-0"]
[Round "09"]
[TimeControl "180+2"]
[Date "2023.05.16"]
[WhiteClock "0:00:22"]
[BlackClock "0:00:20"]

1. g3 {[%clk 0:03:00]}  g6 {[%clk 0:02:58]} 2. Bg2 {[%clk 0:03:01]}  Bg7 {[%clk 0:02:59]} 3. d3 {[%clk 0:03:01]}  e6 {[%clk 0:02:59]} 4. e4 {[%clk 0:03:02]}  Ne7 {[%clk 0:03:00]} 5. Nc3 {[%clk 0:03:02]}  d6 {[%clk 0:03:01]} 6. f4 {[%clk 0:03:02]}  Nd7 {[%clk 0:03:01]} 7. Nf3 {[%clk 0:03:03]}  b6 {[%clk 0:03:01]} 8. O-O {[%clk 0:03:03]}  Bb7 {[%clk 0:03:02]} 9. g4 {[%clk 0:03:04]}  O-O {[%clk 0:03:02]} 10. g5 {[%clk 0:03:04]}  c5 {[%clk 0:03:01]} 11. h4 {[%clk 0:03:04]}  f6 {[%clk 0:03:00]} 12. gxf6 {[%clk 0:03:04]}  Nxf6 {[%clk 0:03:00]} 13. Ng5 {[%clk 0:03:04]}  Qd7 {[%clk 0:02:58]} 14. Bh3 {[%clk 0:03:04]}  Kh8 {[%clk 0:02:55]} 15. Bxe6 {[%clk 0:03:03]}  Qe8 {[%clk 0:02:55]} 16. Bh3 {[%clk 0:02:55]}  Nc6 {[%clk 0:02:51]} 17. Ne6 {[%clk 0:02:55]}  Rf7 {[%clk 0:02:48]} 18. Nxg7 {[%clk 0:02:54]}  Rxg7 {[%clk 0:02:48]} 19. Bd2 {[%clk 0:02:54]}  Nd4 {[%clk 0:02:48]} 20. Ne2 {[%clk 0:02:53]}  Nxe2+ {[%clk 0:02:34]} 21. Qxe2 {[%clk 0:02:52]}  Qf7 {[%clk 0:02:31]} 22. Bc3 {[%clk 0:02:51]}  b5 {[%clk 0:02:28]} 23. a3 {[%clk 0:02:50]}  a5 {[%clk 0:02:28]} 24. b4 {[%clk 0:02:49]}  axb4 {[%clk 0:02:26]} 25. axb4 {[%clk 0:02:48]}  Re8 {[%clk 0:02:27]} 26. Qg2 {[%clk 0:02:37]}  d5 {[%clk 0:02:20]} 27. e5 {[%clk 0:02:21]}  Nh5 {[%clk 0:02:10]} 28. Ra7 {[%clk 0:02:16]}  d4 {[%clk 0:02:08]} 29. Rxb7 {[%clk 0:02:10]}  Qxb7 {[%clk 0:02:07]} 30. Qxb7 {[%clk 0:02:09]}  Rxb7 {[%clk 0:02:07]} 31. Bb2 {[%clk 0:02:10]}  Rf7 {[%clk 0:02:02]} 32. f5 {[%clk 0:02:03]}  Ng3 {[%clk 0:01:56]} 33. bxc5 {[%clk 0:01:56]}  Nxf1 {[%clk 0:01:53]} 34. Kxf1 {[%clk 0:01:56]}  gxf5 {[%clk 0:01:40]} 35. Bxd4 {[%clk 0:01:55]}  Re6 {[%clk 0:01:40]} 36. Kg2 {[%clk 0:01:43]}  Kg8 {[%clk 0:01:39]} 37. Kf3 {[%clk 0:01:42]}  Kf8 {[%clk 0:01:37]} 38. Kf4 {[%clk 0:01:42]}  Rh6 {[%clk 0:01:32]} 39. Bf2 {[%clk 0:01:38]}  Ke7 {[%clk 0:01:27]} 40. d4 {[%clk 0:01:32]}  Ke6 {[%clk 0:01:03]} 41. c6 {[%clk 0:01:32]}  Ke7 {[%clk 0:00:58]} 42. d5 {[%clk 0:01:31]}  Kd8 {[%clk 0:00:56]} 43. Bb6+ {[%clk 0:01:30]}  Kc8 {[%clk 0:00:52]} 44. Bxf5+ {[%clk 0:01:00]}  Kb8 {[%clk 0:00:45]} 45. e6 {[%clk 0:00:50]}  Rg7 {[%clk 0:00:34]} 46. Bf2 {[%clk 0:00:42]}  Kc7 {[%clk 0:00:30]} 47. Ke5 {[%clk 0:00:24]}  Rg2 {[%clk 0:00:24]} 48. d6+ {[%clk 0:00:23]}  Kxc6 {[%clk 0:00:20]} 49. Be4# {[%clk 0:00:22]} 1-0


[Site "https://www.chess.com"]

[Event "Titled Tuesday Blitz May 16 Early 2023"]
[White "Grabinsky, Vladimir"]
[Black "KorolDimitriy75"]
[WhiteFideId "14107074"]
[WhiteElo "2027"]
[BlackElo "2473"]
[Result "0-1"]
[Round "09"]
[TimeControl "180+2"]
[Date "2023.05.16"]
[WhiteClock "0:00:00"]
[BlackClock "0:01:12"]

1. e4 {[%clk 0:03:00]}  c5 {[%clk 0:02:59]} 2. b4 {[%clk 0:03:00]}  cxb4 {[%clk 0:02:58]} 3. a3 {[%clk 0:03:00]}  d5 {[%clk 0:02:59]} 4. exd5 {[%clk 0:02:59]}  Qxd5 {[%clk 0:03:00]} 5. Nf3 {[%clk 0:02:59]}  bxa3 {[%clk 0:02:58]} 6. Nxa3 {[%clk 0:02:53]}  Nc6 {[%clk 0:02:42]} 7. Nb5 {[%clk 0:02:47]}  Qd8 {[%clk 0:02:40]} 8. Bc4 {[%clk 0:02:43]}  Nf6 {[%clk 0:02:37]} 9. Bb2 {[%clk 0:02:37]}  e6 {[%clk 0:02:36]} 10. Ne5 {[%clk 0:02:21]}  Be7 {[%clk 0:02:25]} 11. Nxc6 {[%clk 0:02:07]}  bxc6 {[%clk 0:02:25]} 12. Nxa7 {[%clk 0:01:57]}  Bd7 {[%clk 0:01:59]} 13. O-O {[%clk 0:00:52]}  Qb6 {[%clk 0:01:24]} 14. Bxf6 {[%clk 0:00:09]}  Bxf6 {[%clk 0:01:17]} 15. Ra6 {[%clk 0:00:00]}  Qb7 {[%clk 0:01:12]} 0-1


[Site "https://www.chess.com"]

[Event "Titled Tuesday Blitz May 16 Early 2023"]
[White "Papayan, Oleg"]
[Black "Ankudinova, Yelena"]
[WhiteFideId "4193911"]
[BlackFideId "13702114"]
[WhiteElo "2171"]
[BlackElo "1937"]
[Result "1-0"]
[Round "09"]
[TimeControl "180+2"]
[Date "2023.05.16"]
[WhiteClock "0:02:30"]
[BlackClock "0:01:49"]

1. e4 {[%clk 0:02:57]}  c6 {[%clk 0:02:59]} 2. Nc3 {[%clk 0:02:57]}  d5 {[%clk 0:02:58]} 3. Nf3 {[%clk 0:02:58]}  dxe4 {[%clk 0:02:57]} 4. Nxe4 {[%clk 0:02:58]}  Nd7 {[%clk 0:02:56]} 5. Bc4 {[%clk 0:02:56]}  e6 {[%clk 0:02:55]} 6. Qe2 {[%clk 0:02:46]}  Ngf6 {[%clk 0:02:53]} 7. Neg5 {[%clk 0:02:46]}  Be7 {[%clk 0:02:44]} 8. Nxf7 {[%clk 0:02:40]}  Kxf7 {[%clk 0:02:01]} 9. Qxe6+ {[%clk 0:02:39]}  Kg6 {[%clk 0:02:00]} 10. Qf7+ {[%clk 0:02:38]}  Kh6 {[%clk 0:01:55]} 11. d4+ {[%clk 0:02:35]}  g5 {[%clk 0:01:49]} 12. Bxg5# {[%clk 0:02:30]} 1-0


[Site "https://www.chess.com"]